{"text_format":"1","workbook":"xlsx","n_sheets":13,"sheets":["1. Forside","2. Samlet prisloft","3. Driftsomkostninger","4. Historiske investeringer","5. Gennemførte investeringer","6. Korrektion investeringer","7. Planlagte investeringer","8. 1-1 omkostninger","9. Miljø- og servicemål","10. Klimatilpasning","11. Nettofinansielle poster","12. Over- eller underdækning","13. Kontrol med indtægtsrammen"],"not_rendered":{"charts":0,"images":0,"macros":1,"external_links":0,"defined_names":0,"comments":0,"pivot_tables":0},"unopened":[],"bounds":{"document_bytes":16777216,"sheet_cells":100000,"rows_first":2000,"rows_last":500,"rows_between":2000,"halvings":0,"cell_chars":16384,"cell_head_chars":4096},"cells_cut":0,"cells_raw":0,"read":"whole","date_system":"1900"}

{"sheet":"1. Forside","index":0,"n_rows":27,"n_cols":4,"rows_kept":27,"cut":false,"hidden":false,"merged":[[21,3,21,5],[20,3,20,5],[19,3,19,5],[18,3,18,5],[7,3,7,5],[12,3,12,5],[15,3,15,5],[16,3,16,5],[17,3,17,5],[26,3,26,5],[25,3,25,5],[24,3,24,5],[23,3,23,5],[22,3,22,5]]}
["Biofos Lynettefællesskabet A/S"]
[]
[]
[]
[]
[]
[]
[null,null,null,"Bilag A"]
[]
[]
[]
[]
[null,null,null,"Indholdsfortegnelse"]
[]
[]
[null,null,"Fane nr. 2","Samlet prisloft "]
[null,null,"Fane nr. 3","Driftsomkostninger"]
[null,null,"Fane nr. 4","Historiske investeringer "]
[null,null,"Fane nr. 5","Gennemførte investeringer"]
[null,null,"Fane nr. 6","Korrektion investeringer"]
[null,null,"Fane nr. 7","Planlagte investeringer"]
[null,null,"Fane nr. 8","1:1 omkostninger"]
[null,null,"Fane nr. 9","Miljø- og servicemål"]
[null,null,"Fane nr. 10","Klimatilpasning"]
[null,null,"Fane nr. 11","Nettofinansielle poster"]
[null,null,"Fane nr. 12","Over- eller underdækning"]
[null,null,"Fane nr. 13","Kontrol med indtægtsrammen og oversigt over ekstraordinære effektiviseringsgevinster"]

{"sheet":"2. Samlet prisloft","index":1,"n_rows":38,"n_cols":6,"rows_kept":38,"cut":false,"hidden":false,"merged":[[3,1,3,5]]}
[{"$f":"'1. Forside'!A1","v":"Biofos Lynettefællesskabet A/S"}]
[]
[]
[null,"Fane 2. Samlet prisloft for 2015"]
[]
[null,"Driftsomkostninger"]
[null,"Driftsomkostninger i prisloftet for 2014",{"$f":"'3. Driftsomkostninger'!C20","v":158314494.16189033},"kr."]
[null,"Bortfald af væsentlige omkostninger",{"$f":"-'3. Driftsomkostninger'!C16","v":0},"kr."]
[null,"Korrektion for prisudviklingen 2014-2015",{"$f":"'3. Driftsomkostninger'!C22","v":126651.59532951227},"kr."]
[null,"Forhøjelse til effektivt niveau iht. benchmarkingen",{"$f":"'3. Driftsomkostninger'!C28","v":0},"kr."]
[null,"Korrektion for generelt effektiviseringskrav",{"$f":"-'3. Driftsomkostninger'!C34","v":-696583.77431231749},"kr."]
[null,"Korrektion for individuelt effektiviseringskrav",{"$f":"-'3. Driftsomkostninger'!C43","v":-7915724.7080945168},"kr."]
[null,"Driftsomkostninger i alt",{"$f":"SUM(C7:C12)","v":149828837.27481303},"kr.",{"$f":"C13","v":149828837.27481303}," kr."]
[null,"Investeringer"]
[null,"Tillæg for historiske investeringer",{"$f":"'4. Historiske investeringer'!C9","v":71037882.57095331},"kr."]
[null,"Tillæg for gennemførte investeringer i 2011-2013",{"$f":"'5. Gennemførte investeringer'!F145","v":39890491.653333329},"kr."]
[null,"Korrektion af tillæg for planlagte investeringer vedrørende 2013  ",{"$f":"'6. Korrektion investeringer'!C10","v":15731292.099999979},"kr."]
[null,"Tillæg for planlagte investeringer i 2014 og 2015",{"$f":"'7. Planlagte investeringer'!F14","v":34132500},"kr."]
[null,"Investeringstillæg i alt",{"$f":"SUM(C15:C18)","v":160792166.32428664},"kr.",{"$f":"C19","v":160792166.32428664}," kr."]
[null,"Øvrige omkostninger mv."]
[null,"Tillæg for 1:1 omkostninger i 2015",{"$f":"'8. 1-1 omkostninger'!C14","v":40033000},"kr."]
[null,"Tillæg vedr. revisorerklæringer og DANVA/FVD-kontingent",{"$f":"'8. 1-1 omkostninger'!C22","v":208800},"kr."]
[null,"Korrektion ift. faktiske 1:1 omkostninger i 2013",{"$f":"'8. 1-1 omkostninger'!C28","v":-13692913},"kr."]
[null,"Tillæg for driftsomkostninger til miljø- og servicemål i 2015",{"$f":"'9. Miljø- og servicemål'!C10","v":2400000},"kr."]
[null,"Korrektion ift. faktiske driftsomkostninger til miljø- og servicemål i 2013",{"$f":"'9. Miljø- og servicemål'!C17","v":0},"kr."]
[null,"Tillæg for driftsomkostninger til medfinansiering af klimatilpasningsprojekter i 2015",{"$f":"'10. Klimatilpasning'!C9","v":0},"kr."]
[null,"Korrektion ift. faktiske omkostninger til medfinansiering af klimatilpasningsprojekter i 2013",{"$f":"'10. Klimatilpasning'!C16","v":0},"kr."]
[null,"Tillæg/fradrag for nettofinansielle poster i 2015",{"$f":"'11. Nettofinansielle poster'!C9","v":6550000},"kr."]
[null,"Korrektion ift. faktiske nettofinansielle poster i 2013",{"$f":"'11. Nettofinansielle poster'!C16","v":515793},"kr."]
[null,"Øvrige omkostninger mv. i alt",{"$f":"SUM(C21:C29)","v":36014680},"kr.",{"$f":"C30","v":36014680}," kr."]
[null,"Historisk over- eller underdækning"]
[null,"Tillæg/fradrag for over- eller underdækning til og med 2010",{"$f":"'12. Over- eller underdækning'!C11","v":7228408.5},"kr.",{"$f":"C32","v":7228408.5}," kr."]
[null,"Korrektion i forhold til tidligere indtægtsramme "]
[null,"Korrektion for overholdelse af indtægtsramme i prisloft 2013",{"$f":"'13. Kontrol med indtægtsrammen'!E27","v":17704993.192825019},"kr.",{"$f":"C34","v":17704993.192825019}," kr."]
[null,"Samlet prisloft"]
[null,"Indtægtsramme i 2015 ",null,null,{"$f":"SUM(E13:E34)","v":371569085.29192466}," kr."]
[null,"Debiteret vandmængde i 2013",null,null,44456000," m3"]
[null,"Prisloft 2015",null,null,{"$f":"E36/E37","v":8.3581313049290227}," kr./m3"]

{"sheet":"3. Driftsomkostninger","index":2,"n_rows":43,"n_cols":4,"rows_kept":43,"cut":false,"hidden":false,"merged":[[3,1,3,3]]}
[{"$f":"'1. Forside'!A1","v":"Biofos Lynettefællesskabet A/S"}]
[]
[]
[null,"Fane 3. Driftsomkostninger "]
[]
[null,"Driftsomkostningerne i prisloftet for 2014"]
[null,"Korrigerede driftsomkostninger i prisloftet for 2013 (DOiPL 2013)",164056470.6521087,"kr."]
[null,"Prisfremskrivning 1,5 pct.",{"$f":"0.015*SUM(C7:C7)","v":2460847.0597816305},"kr."]
[null,"Generelt effektiviseringskrav (0 pct.)",0,"kr."]
[null,"Individuelt effektiviseringskrav ",-8202823.5499999998,"kr."]
[null,"Driftsomkostningerne i prisloftet for 2014 (DOiPL 2014)",{"$f":"SUM(C7:C10)","v":158314494.16189033},"kr."]
[]
[]
[null,"Korrektion for forventet bortfald af væsentlige omkostninger"]
[null,"Selskabets indberettede bortfald af væsentlige omkostninger inden 2015",0,"kr."]
[null,"Korrektion for forventet bortfald ",{"$f":"SUM(C15:C15)","v":0},"kr."]
[]
[]
[null,"Korrektion for prisudviklingen fra 2014-2015"]
[null,"Driftsomkostningerne i prisloftet for 2014",{"$f":"C11-C16","v":158314494.16189033},"kr."]
[null,"Prisudvikling 2014 - 2015 ",0.08,"pct."]
[null,"Korrektion for prisudvikling",{"$f":"C20*(C21/100)","v":126651.59532951227},"kr."]
[]
[]
[null,"Eventuel forhøjelse til effektivt niveau iht. benchmarkingen"]
[null,"Selskabets effektive driftsomkostninger iht. benchmarkingen",77241641.701586291,"kr."]
[null,"Selskabets pristalskorrigerede driftsomkostninger i 2015-niveau",{"$f":"C20+C22","v":158441145.75721985},"kr."]
[null,"Eventuel forhøjelse til effektivt niveau",{"$f":"IF(C27>C26,0,C26-C27)","v":0},"kr."]
[]
[]
[null,"Korrektion for generelt effektiviseringskrav"]
[null,"Driftsomkostningerne i prisloftet for 2014",{"$f":"C20","v":158314494.16189033},"kr. "]
[null,"Generelt effektiviseringskrav ",0.44,"pct."]
[null,"Endeligt generelt effektiviseringskrav",{"$f":"C32*(C33/100)","v":696583.77431231749},"kr. "]
[]
[]
[null,"Korrektion for individuelt effektiviseringskrav"]
[null,"Rå effektiviseringspotentiale",81072852.460304037,"kr."]
[null,"Effektiviseringspotentiale efter eventuel korrektion for særlige forhold",81072852.460304037,"kr."]
[null,"Effektiviseringspotentiale efter forsigtighedshensyn",59795384.444945976,"kr."]
[null,"Effektiviseringspotentiale efter eventuel korrektion for sammensætning af signifikante costdrivere",59795384.444945976,"kr. "]
[null,"Umiddelbart effektiviseringskrav",{"$f":"C41/4","v":14948846.111236494},"kr."]
[null,"Endeligt individuelt effektiviseringskrav",{"$f":"IF(C42>0.05*C20,0.05*C20,IF(C42<0.01*C20,0,C42))","v":7915724.7080945168},"kr. "]

{"sheet":"4. Historiske investeringer","index":3,"n_rows":9,"n_cols":4,"rows_kept":9,"cut":false,"hidden":false,"merged":[[3,1,3,2]]}
[{"$f":"'3. Driftsomkostninger'!A1","v":"Biofos Lynettefællesskabet A/S"}]
[]
[]
[null,"Fane 4. Historiske investeringer "]
[]
[null,"Tillæg for historiske investeringer "]
[null,"Værdi af selskabets materielle anlægsaktiver pr. 1. januar 2010",1368342229.0433083,"kr."]
[null,"Den årlige standardafskrivning på de materielle anlægsaktiver iht. POLKA",71037882.57095331,"kr."]
[null,"Tillæg i alt i 2015",{"$f":"C8","v":71037882.57095331},"kr."]

{"sheet":"5. Gennemførte investeringer","index":4,"n_rows":145,"n_cols":7,"rows_kept":145,"cut":false,"hidden":false,"merged":[[3,1,3,5],[6,5,6,6]]}
[{"$f":"'4. Historiske investeringer'!A1","v":"Biofos Lynettefællesskabet A/S"}]
[]
[]
[null,"Fane 5. Gennemførte investeringer i 2010 - 2013 "]
[]
[null,"Tillæg for gennemførte investeringer i 2013"]
[null," Beskrivelse af investeringen   ","Årstal ","Std. levetid (år)   "," Anskaffelses-pris (kr.)","Afskrivning "]
[null,"Indløb med riste, Mek/EL",2013,20,2563110,{"$f":"E8/D8","v":128155.5},"kr."]
[null,"Indløb med riste, SRO",2013,10,112451,{"$f":"E9/D9","v":11245.1},"kr."]
[null,"Forsinkelsesbassiner, lukkede uden automatisk rensning og SRO Miljøklasse B (mindre end 1.000 m3)",2013,50,4045503,80910.06,"kr."]
[null,"Sand- og fedtfang, Mek/EL",2013,20,92794,4639.7,"kr."]
[null,"Indløb med riste, SRO",2013,10,8808872,880887.2,"kr."]
[null,"Indløb med riste, SRO",2013,10,316012,31601.200000000001,"kr."]
[null,"Indløb med riste, Mek/EL",2013,20,24096151,1204807.55,"kr."]
[null,"Indløb med riste, Mek/EL",2013,20,12983862,649193.1,"kr."]
[null,"Slutdisponering, slam - højteknologisk (slamtørring og -forbrænding), Mek/EL",2013,20,80982761,4049138.05,"kr."]
[null,"Beluftningstanke, SRO",2013,10,9465748,946574.8,"kr."]
[null,"Forafvanding, slam, SRO",2013,10,15565900,1556590,"kr."]
[null,"Forafvanding, slam, SRO",2013,10,2073192,207319.2,"kr."]
[null,"Efterklaringstanke, Mek/El",2013,20,7287327,364366.35,"kr."]
[null,"Forafvanding, slam, Mek/EL",2013,20,34906806,1745340.3,"kr."]
[null,"Forafvanding, slam, SRO",2013,10,17953459,1795345.9,"kr."]
[null,"Slutafvanding, slam - lavteknologisk (slambede), Mek/EL",2013,20,14586782,729339.1,"kr."]
[null,"Rådnetanke, slam, Mek/EL",2013,20,9906148,495307.4,"kr."]
[null,"Gasdisponering, SRO",2013,10,7010376,701037.6,"kr."]
[null,"Rådnetanke, slam, Mek/EL",2013,20,6512907,325645.34999999998,"kr."]
[null,"Indløb med riste, Mek/EL",2013,20,6789474,{"$f":"E27/D27","v":339473.7},"kr."]
[null,"Indløb med riste, Mek/EL",2013,20,3326336,166316.79999999999,"kr."]
[null,"Jordbassin Klasse A",2013,50,12351549,247030.98,"kr."]
[null,"Gasdisponering - elproduktionsanlæg, Mek/EL",2013,20,1671443,83572.149999999994,"kr."]
[null,"Gasdisponering - elproduktionsanlæg, Mek/EL",2013,20,10018076,500903.8,"kr."]
[null,"Arbejdsplads",2013,5,410000,82000,"kr."]
[null,"Arbejdsplads",2013,5,123686,24737.200000000001,"kr."]
[null,"Arbejdsplads",2013,5,29430,5886,"kr."]
[null,"Beluftningstanke, Mek/EL",2013,20,565456,28272.799999999999,"kr."]
[null,"Arbejdsplads",2013,5,41993,8398.6,"kr."]
[null,"Køretøjer, entreprenørmaskiner",2013,5,22263,4452.6000000000004,"kr."]
[null,"Slutafvanding, slam - lavteknologisk (slambede), Mek/EL",2013,20,135338,6766.9,"kr."]
[null,"Køretøjer, entreprenørmaskiner",2013,5,60490,12098,"kr."]
[null,"Køretøjer, entreprenørmaskiner",2013,5,36600,7320,"kr."]
[null,"Indløb med riste, SRO",2013,10,74102,7410.2,"kr."]
[null,"Indløb med riste, Mek/EL",2013,20,29112,1455.6,"kr."]
[null,"Køretøjer, entreprenørmaskiner",2013,5,56051,11210.2,"kr."]
[null,"Indløb med riste, SRO",2013,10,13577,1357.7,"kr."]
[null,"Indløb med riste, SRO",2013,10,37940,3794,"kr."]
[null,"Indløb med riste, SRO",2013,10,25535,2553.5,"kr."]
[null,"Arbejdsplads",2013,5,21492,4298.3999999999996,"kr."]
[null,"Arbejdsplads",2013,5,31621,6324.2,"kr."]
[null,"Arbejdsplads",2013,5,39624,7924.8,"kr."]
[null,"Forklaring, Mek/EL",2013,20,64980,3249,"kr."]
[null,"Beluftningstanke, Mek/EL",2013,20,331008,16550.400000000001,"kr."]
[null,"Beluftningstanke, Mek/EL",2013,20,61701,3085.05,"kr."]
[null,"Arbejdsplads",2013,5,84659,16931.8,"kr."]
[null,"Arbejdsplads",2013,5,58720,11744,"kr."]
[null,"Indløb med riste, SRO",2013,10,43600,4360,"kr."]
[null,"Beluftningstanke, SRO",2013,10,184597,18459.7,"kr."]
[null,"Beluftningstanke, Mek/EL",2013,20,142207,7110.35,"kr."]
[null,"Arbejdsplads",2013,5,60240,12048,"kr."]
[null,"Forsinkelsesbassiner, lukkede uden automatisk rensning og SRO Miljøklasse B (mindre end 1.000 m3)",2013,50,64263,1285.26,"kr."]
[null,"Slutdisponering, slam - højteknologisk (slamtørring og -forbrænding), Mek/EL",2013,20,93863,4693.1499999999996,"kr."]
[null,"Arbejdsplads",2013,5,44709,8941.7999999999993,"kr."]
[null,"Slutafvanding, slam - højteknologisk (centrifuger), Mek/El",2013,20,502223,25111.15,"kr."]
[null,"Forafvanding, slam, Mek/EL",2013,20,98900,4945,"kr."]
[null,"Slutafvanding, slam - højteknologisk (centrifuger), SRO",2013,10,25233,2523.3000000000002,"kr."]
[null,"Slutdisponering, slam - højteknologisk (slamtørring og -forbrænding), SRO",2013,10,120029,12002.9,"kr."]
[null,"Slutafvanding, slam - højteknologisk (centrifuger), Mek/El",2013,20,32944,1647.2,"kr."]
[null,"Forsinkelsesbassiner, lukkede uden automatisk rensning og SRO Miljøklasse B (mindre end 1.000 m3)",2013,50,36490,729.8,"kr."]
[null,"Slutdisponering, slam - højteknologisk (slamtørring og -forbrænding), Mek/EL",2013,20,344102,17205.099999999999,"kr."]
[null,"Sand- og fedtfang, Mek/EL",2013,20,118490,5924.5,"kr."]
[null,"Forklaring, Mek/EL",2013,20,23644,1182.2,"kr."]
[null,"Gasdisponering - elproduktionsanlæg, Mek/EL",2013,20,188600,9430,"kr."]
[null,"Sand- og fedtfang, Mek/EL",2013,20,102820,5141,"kr."]
[null,"Sand- og fedtfang, Mek/EL",2013,20,53350,2667.5,"kr."]
[null,"Indløb med riste, SRO",2013,10,35994,3599.4,"kr."]
[null,"Forklaring, SRO",2013,10,74137,7413.7,"kr."]
[null,"Forklaring, Mek/EL",2013,20,69363,3468.15,"kr."]
[null,"Beluftningstanke, Mek/EL",2013,20,97108,4855.3999999999996,"kr."]
[null,"Rådnetanke, slam, Mek/EL",2013,20,182514,9125.7000000000007,"kr."]
[null,"Forklaring, Mek/EL",2013,20,105651,5282.55,"kr."]
[null,"Efterbehandlingsanlæg (sandfilter), Mek/EL",2013,20,34628,1731.4,"kr."]
[null,"Arbejdsplads",2013,5,93844,18768.8,"kr."]
[null,"Beluftningstanke, Mek/EL",2013,20,312942,15647.1,"kr."]
[null,"Rådnetanke, slam, Mek/EL",2013,20,101902,5095.1000000000004,"kr."]
[null,"Rådnetanke, slam, Mek/EL",2013,20,94164,4708.2,"kr."]
[null,"Beluftningstanke, Mek/EL",2013,20,29813,1490.65,"kr."]
[null,"Forafvanding, slam, Mek/EL",2013,20,22650,1132.5,"kr."]
[null,"Forafvanding, slam, Mek/EL",2013,20,47563,2378.15,"kr."]
[null,"Arbejdsplads",2013,5,24116,4823.2,"kr."]
[null,"Indløb med riste, Mek/EL",2013,20,19806,990.3,"kr."]
[null,"Indløb med riste, Mek/EL",2013,20,90425,4521.25,"kr."]
[null,"Slutdisponering, slam - højteknologisk (slamtørring og -forbrænding), Mek/EL",2013,20,28115,1405.75,"kr."]
[null,"Køretøjer, entreprenørmaskiner",2013,5,223855,44771,"kr."]
[null,"Indløb med riste, Mek/EL",2013,20,77523,3876.15,"kr."]
[null,"Køretøjer, entreprenørmaskiner",2013,5,84170,16834,"kr."]
[null,"Indløb med riste, SRO",2013,10,45305,4530.5,"kr."]
[null,"Sand- og fedtfang, Mek/EL",2013,20,30397,1519.85,"kr."]
[null,"Arbejdsplads",2013,5,142777,28555.4,"kr."]
[null,"Beluftningstanke, Mek/EL",2013,20,326789,16339.45,"kr."]
[null,"Gasdisponering - elproduktionsanlæg, Mek/EL",2013,20,47605,2380.25,"kr."]
[null,"Slutafvanding, slam - højteknologisk (centrifuger), SRO",2013,10,116139,11613.9,"kr."]
[null,"Beluftningstanke, Mek/EL",2013,20,131905,6595.25,"kr."]
[null,"Indløb med riste, Mek/EL",2013,20,36670,1833.5,"kr."]
[null,"Forsinkelsesbassiner, lukkede uden automatisk rensning og SRO Miljøklasse B (mindre end 1.000 m3)",2013,50,183995,3679.9,"kr."]
[null,"Indløb med riste, SRO",2013,10,54668,5466.8,"kr."]
[null,"Forklaring, Mek/EL",2013,20,54017,2700.85,"kr."]
[null,"Indløb med riste, Mek/EL",2013,20,56438,2821.9,"kr."]
[null,"Arbejdsplads",2013,5,38252,7650.4,"kr."]
[null,"Indløb med riste, Mek/EL",2013,20,31087,1554.35,"kr."]
[null,"Forafvanding, slam, Mek/EL",2013,20,24804,1240.2,"kr."]
[null,"Pumpeinstallation Miljøklasse A (100-300 l/s) - Mek/EL",2013,20,107039,5351.95,"kr."]
[null,"Forsinkelsesbassiner, lukkede uden automatisk rensning og SRO Miljøklasse B (mindre end 1.000 m3)",2013,50,18871,377.42,"kr."]
[null,"Forsinkelsesbassiner, lukkede uden automatisk rensning og SRO Miljøklasse B (mindre end 1.000 m3)",2013,50,32437,648.74,"kr."]
[null,"Arbejdsplads",2013,5,303950,60790,"kr."]
[null,"Arbejdsplads",2013,5,242000,48400,"kr."]
[null,"Sand- og fedtfang, Mek/EL",2013,20,85480,4274,"kr."]
[null,"Pumpeinstallation Miljøklasse A (100-300 l/s) - Mek/EL",2013,20,138452,6922.6,"kr."]
[null,"Beluftningstanke, Mek/EL",2013,20,96046,4802.3,"kr."]
[null,"Pumpeinstallation Miljøklasse A (100-300 l/s) - Mek/EL",2013,20,97866,4893.3,"kr."]
[null,"Indløb med riste, Mek/EL",2013,20,97621,4881.05,"kr."]
[null,"Pumpeinstallation Miljøklasse A (100-300 l/s) - Mek/EL",2013,20,113723,5686.15,"kr."]
[null,"Indløb med riste, SRO",2013,10,34897,3489.7,"kr."]
[null,"Sand- og fedtfang, Mek/EL",2013,20,36477,1823.85,"kr."]
[null,"Indløb med riste, Mek/EL",2013,20,31111,1555.55,"kr."]
[null,"Arbejdsplads",2013,5,37438,7487.6,"kr."]
[null,"Forafvanding, slam, Mek/EL",2013,20,102004,5100.2,"kr."]
[null,"Køretøjer, små lastvogne (< 3.500 kg.)",2013,5,59379,11875.8,"kr."]
[null,"Beluftningstanke, Mek/EL",2013,20,88573,4428.6499999999996,"kr."]
[null,"Beluftningstanke, Mek/EL",2013,20,87778,4388.8999999999996,"kr."]
[null,"Beluftningstanke, Mek/EL",2013,20,70332,3516.6,"kr."]
[null,"Forsinkelsesbassiner, lukkede uden automatisk rensning og SRO Miljøklasse B (mindre end 1.000 m3)",2013,50,113082,2261.64,"kr."]
[null,"Indløb med riste, Mek/EL",2013,20,23257,1162.8499999999999,"kr."]
[null,"Slutdisponering, slam - lavteknologisk (slammineralisering), Mek/EL",2013,20,74463,3723.15,"kr."]
[null,"Arbejdsplads",2013,5,36244,7248.8,"kr."]
[null,"Køretøjer, store lastvogne (> 3.500 kg.)",2013,5,211046,42209.2,"kr."]
[null,"Køretøjer, store lastvogne (> 3.500 kg.)",2013,5,98434,19686.8,"kr."]
[null,"Indløb med riste, Mek/EL",2013,20,23554,1177.7,"kr."]
[null,"Indløb med riste, SRO",2013,10,22995,2299.5,"kr."]
[null,"Pumpeinstallation Miljøklasse A (300-600 l/s) - Mek/EL",2013,20,233378,11668.9,"kr."]
[null,"Køretøjer, personbil",2013,5,57532,11506.4,"kr."]
[null,"Pumpestationer i brønde (< 6,25 m2), Mek/EL",2013,20,68139,3406.95,"kr."]
[null,"Pumpestationer i brønde (< 6,25 m2), Mek/EL",2013,20,45510,2275.5,"kr."]
[null,"Indløb med riste, SRO",2013,5,4344768,868953.59999999998,"kr."]
[null,"Tillæg for 2013 ",null,null,null,{"$f":"SUM(F8:F142)","v":19096646.04999999},"kr."]
[null,"Tillæg for 2010 - 2012",null,null,null,20793845.603333339,"kr."]
[null,"Samlet tillæg for gennemførte investeringer",null,null,null,{"$f":"F143+F144","v":39890491.653333329},"kr."]

{"sheet":"6. Korrektion investeringer","index":5,"n_rows":10,"n_cols":4,"rows_kept":10,"cut":false,"hidden":false,"merged":[[3,1,3,3]]}
[{"$f":"'5. Gennemførte investeringer'!A1","v":"Biofos Lynettefællesskabet A/S"}]
[]
[]
[null,"Fane 6. Korrektion af tillæg for planlagte investeringer"]
[]
[null,"Korrektion af tillæg for planlagte investeringer vedr. 2013"]
[null,"Tillæg for planlagte investeringer i 2013 i prisloft 2013",11912000,"kr."]
[null,"Tillæg for planlagte investeringer i 2013 i prisloft 2014",10550000,"kr."]
[null,"Selskabets faktiske afskrivninger på gennemførte investeringer i 2013",{"$f":"'5. Gennemførte investeringer'!F143","v":19096646.04999999},"kr."]
[null,"Korrektion af tillæg for planlagte investeringer vedr. 2013",{"$f":"C9-C7+C9-C8","v":15731292.099999979},"kr."]

{"sheet":"7. Planlagte investeringer","index":6,"n_rows":14,"n_cols":7,"rows_kept":14,"cut":false,"hidden":false,"merged":[[6,5,6,6],[3,1,3,6]]}
[{"$f":"'6. Korrektion investeringer'!A1","v":"Biofos Lynettefællesskabet A/S"}]
[]
[]
[null,"Fane 7. Planlagte investeringer "]
[]
[null,"Tillæg for planlagte investeringer i 2014 og 2015"]
[null,"Beskrivelse af investeringen   ","Årstal ","Std. levetid (år)   ","Anskaffelses-pris (kr.)   ","Afskrivning"]
[null,"Slutdisponering, slam - højteknologisk (slamtørring og -forbrænding), Mek/EL",2014,20,97285000,{"$f":"E8/D8","v":4864250},"kr."]
[null,"Slutdisponering, slam - højteknologisk (slamtørring og -forbrænding), SRO",2014,10,97285000,{"$f":"E9/D9","v":9728500},"kr."]
[null,"Slutdisponering, slam - højteknologisk (slamtørring og -forbrænding), Mek/EL",2015,20,130265000,{"$f":"E10/D10","v":6513250},"kr."]
[null,"Slutdisponering, slam - højteknologisk (slamtørring og -forbrænding), SRO",2015,10,130265000,13026500,"kr."]
[null,"Tillæg for 2014",null,null,null,{"$f":"SUMIF(C8:C11,\"2014\",F8:F11)","v":14592750},"kr."]
[null,"Tillæg for 2015",null,null,null,{"$f":"SUMIF(C8:C11,\"2015\",F8:F11)","v":19539750},"kr."]
[null,"Tillæg i alt",null,null,null,{"$f":"F12+F13","v":34132500},"kr."]

{"sheet":"8. 1-1 omkostninger","index":7,"n_rows":28,"n_cols":4,"rows_kept":28,"cut":false,"hidden":false,"merged":[[3,1,3,3],[18,1,18,3],[24,1,24,3]]}
[{"$f":"'7. Planlagte investeringer'!A1","v":"Biofos Lynettefællesskabet A/S"}]
[]
[]
[null,"Fane 8. 1:1 omkostninger"]
[]
[null,"Tillæg for budgetterede 1:1 omkostninger i 2015"]
[null,"Betaling til Forsyningssekretariatet",33000,"kr."]
[null,"Spildevandsafgift",26000000,"kr."]
[null,"Køb af varer og tjenesteydelser hos et andet prisloftreguleret vandselskab",2200000,"kr."]
[null,"Tillægsafgift på affald",1000000,"kr. "]
[null,"CO2-afgift ",200000,"kr. "]
[null,"Deponeringsafgift ",1800000,"kr."]
[null,"Ejendomsskatter",8800000,"kr."]
[null,"Tillæg i alt ",{"$f":"SUM(C7:C13)","v":40033000},"kr."]
[]
[]
[]
[]
[null,"Tillæg for budgetterede nødvendige udgifter til revisorerklæringer samt ordinært medlemskab af DANVA og FVD i 2015"]
[null,"Betaling for ordinært medlemskab af DANVA/FVD",160000,"kr."]
[null,"Betaling for revisorerklæringer",48800,"kr."]
[null,"Tillæg i alt ",{"$f":"SUM(C20:C21)","v":208800},"kr."]
[]
[]
[null,"Korrektion af tillæg for faktiske 1:1 omkostninger (inkl. revisorerklæringer og ordinært medlemskab af DANVA/FVD) i 2013"]
[null,"Selskabets faktiske 1:1 omkostninger mv. i 2013, jf. reguleringsregnskabet",39842387,"kr."]
[null,"Tillæg for budgetterede 1:1 omkostninger mv. i prisloft 2013",53535300,"kr."]
[null,"Korrektion af tillæg for budgetterede 1:1 omkostninger mv. i 2013",{"$f":"C26-C27","v":-13692913},"kr."]

{"sheet":"9. Miljø- og servicemål","index":8,"n_rows":17,"n_cols":4,"rows_kept":17,"cut":false,"hidden":false,"merged":[[3,1,3,3]]}
[{"$f":"'8. 1-1 omkostninger'!A1","v":"Biofos Lynettefællesskabet A/S"}]
[]
[]
[null,"Fane 9. Driftsomkostninger til miljø- og servicemål "]
[]
[null,"Tillæg for budgetterede driftsomkostninger til miljø- og servicemål i 2015"]
[null,"Genanvendelse af aske",850000,"kr."]
[null,"Genanvendelse af sand",700000,"kr."]
[null,"Deponering af aske til udlandet",850000,"kr."]
[null,"Tillæg i alt",{"$f":"SUM(C7:C9)","v":2400000},"kr."]
[]
[]
[]
[null,"Korrektion af tillæg for faktiske driftsomkostninger til miljø- og servicemål i 2013"]
[null,"Selskabets faktiske driftsomkostninger til miljø- og servicemål i 2013, jf. reguleringsregnskabet",0,"kr."]
[null,"Tillæg for budgetterede driftsomkostninger til miljø- og servicemål i prisloft 2013",0,"kr."]
[null,"Korrektion af tillæg for budgetterede driftsomkostninger til miljø- og servicemål i 2013",{"$f":"C15-C16","v":0},"kr."]

{"sheet":"10. Klimatilpasning","index":9,"n_rows":16,"n_cols":4,"rows_kept":16,"cut":false,"hidden":false,"merged":[[3,1,3,3],[12,1,12,3],[6,1,6,3]]}
[{"$f":"'9. Miljø- og servicemål'!A1","v":"Biofos Lynettefællesskabet A/S"}]
[]
[]
[null,"Fane 10. Medfinansiering af klimatilpasningsprojekter"]
[]
[]
[null,"Tillæg for budgetterede omkostninger til medfinansiering af klimatilpasningsprojekter i 2015"]
[null,null,0,"kr."]
[null,"Tillæg i alt",{"$f":" SUM(C8:C8)","v":0},"kr."]
[]
[]
[]
[null,"Korrektion af tillæg for faktiske omkostninger til medfinansiering af klimatilpasningsprojekter i 2013"]
[null,"Selskabets faktiske driftsomkostninger til klimatilpasningsprojekter i 2013, jf. reguleringsregnskabet",0,"kr."]
[null,"Tillæg for budgetterede driftsomkostninger til klimatilpasningsprojekter i prisloft 2013",0,"kr."]
[null,"Korrektion af tillæg for budgetterede omkostninger til klimatilpasningsprojekter i 2013",{"$f":"C14-C15","v":0},"kr."]

{"sheet":"11. Nettofinansielle poster","index":10,"n_rows":16,"n_cols":4,"rows_kept":16,"cut":false,"hidden":false,"merged":[[3,1,3,3]]}
[{"$f":"'10. Klimatilpasning'!A1","v":"Biofos Lynettefællesskabet A/S"}]
[]
[]
[null,"Fane 11. Nettofinansielle poster"]
[]
[null,"Tillæg for budgetterede nettofinansielle poster i 2015"]
[null,"Budgetterede renteudgifter og gebyrer i 2015",6600000,"kr."]
[null,"Budgetterede renteindtægter i 2015",50000,"kr."]
[null,"Tillæg/fradrag i alt",{"$f":"C7-C8","v":6550000},"kr."]
[]
[]
[]
[null,"Korrektion af tillæg for faktiske nettofinansielle poster i 2013"]
[null,"Selskabets faktiske nettofinansielle poster i 2013, jf. reguleringsregnskabet",5594118,"kr."]
[null,"Tillæg for budgetterede nettofinansielle poster i prisloft 2013",5078325,"kr."]
[null,"Korrektion af tillæg for budgetterede nettofinansielle poster i 2013",{"$f":"C14-C15","v":515793},"kr."]

{"sheet":"12. Over- eller underdækning","index":11,"n_rows":11,"n_cols":4,"rows_kept":11,"cut":false,"hidden":false,"merged":[[3,1,3,3]]}
[{"$f":"'11. Nettofinansielle poster'!A1","v":"Biofos Lynettefællesskabet A/S"}]
[]
[]
[null,"Fane 12. Over- eller underdækning til og med 2010"]
[]
[null,"Tillæg/fradrag for over- eller underdækning til og med 2010"]
[null,"Opgjort over- eller underdækning per 31. december 2010",35577402,"kr."]
[null,"Heraf beløb indregnet i prislofterne for 2011 - 2014",28348993.5,"kr."]
[null,"Endnu ikke indregnet over- eller underdækning",{"$f":"C7-C8","v":7228408.5},"kr."]
[null,"Resterende indregningsperiode (fastsat i prisloftet for 2012)",1,"år"]
[null,"Tillæg/fradrag i alt",{"$f":"IF(C7=0,0,C9/C10)","v":7228408.5},"kr."]

{"sheet":"13. Kontrol med indtægtsrammen","index":12,"n_rows":39,"n_cols":12,"rows_kept":39,"cut":false,"hidden":false,"merged":[[3,1,3,5],[30,1,30,4],[5,1,5,5]]}
[{"$f":"'12. Over- eller underdækning'!A1","v":"Biofos Lynettefællesskabet A/S"}]
[]
[]
[null,"Fane 13. Korrektion for overholdelse af indtægtsrammen i prisloftet for 2013"]
[]
[null,"Samlet opgørelse vedrørende overholdelse af indtægtsrammen i prisloftet for 2013"]
[null,"Indtægtsramme i prisloftet for 2013",null,null,302080693.19282502,"kr."]
[null,"Ikke anvendt likviditet vedrørende investeringer i 2013"]
[null,"Tillæg for historiske investeringer ",71136316.540715903,"kr."]
[null,"Tillæg for gennemførte investeringer i 2011",18504619,"kr."]
[null,"Korrektion af tillæg for planlagte investeringer i 2011",-13281858,"kr."]
[null,"Tillæg for planlagte investeringer i 2012 og 2013",31039733,"kr."]
[null,"Indtægter fra tilslutningsbidrag",0,"kr."]
[null,"Indtægter fra salg af anlægsaktiver",108131,"kr."]
[null,"Erstatninger vedr. anlægsaktiver mv.",0,"kr."]
[null,"Ekstraordinær effektiviseringsgevinst anvendt til investeringer",8991854,"kr."]
[null,"Udgifter til investeringer",-116498796,"kr."]
[null,"Ikke anvendt likviditet vedr. investeringer i alt",{"$f":"SUM(C9:C17)","v":-0.45928409695625305},"kr.",{"$f":"IF(C18<0,0,-C18)","v":0},"kr."]
[null,"Ekstraordinære effektiviseringsgevinster anvendt til takstnedsættelse"]
[null,"Ekstraordinær effektiviseringsgevinst anvendt til takstnedsættelse",0,"kr.",{"$f":"-C20","v":0},"kr."]
[null,"Korrektion af ikke opkrævet tillæg fra 2011 i prisloft 2013"]
[null,"Korrektion af ikke opkrævet tillæg fra 2011 i prisloft 2013",0,"kr.",{"$f":"-C22","v":0},"kr."]
[null,"Indtægter fra primære aktiviteter mv."]
[null,"Indtægter fra kubikmetertakster, faste takster, særbidrag, målergebyrer samt andre takster og gebyrer",284375700,"kr."]
[null,"Andre indtægter i prisloftåret, som selskabet har opnået i forbindelse med eller som følge af selskabets primære aktiviteter",0,"kr."]
[null,"Indtægter fra primære aktiviteter mv. i alt",{"$f":"SUM(C24:C25)","v":284375700},"kr.",{"$f":"-C26","v":-284375700},"kr."]
[null,"Tillæg/fradrag i prisloftet for 2015 i alt",null,null,{"$f":"E7+E18+E20+E22+E26","v":17704993.192825019},"kr."]
[]
[]
[]
[null,"Oversigt over ekstraordinære effektiviseringsgevinster"]
[]
[null,null,2012,null,2013,null,2014,null,2015,null,2016]
[null,"Indhentet ekstraordinær effektiviseringsgevinst",0,"kr.",10565514,"kr.",null,"kr.",null,"kr.",null,"kr."]
[null,"Gevinst anvendt til investeringer",0,"kr.",8991854,"kr.",null,"kr.",null,"kr.",null,"kr."]
[null,"Gevinst anvendt til dækning af fusionsomkostninger",0,"kr.",1573660,"kr.",null,"kr.",null,"kr."]
[null,"Gevinst anvendt til takstnedsættelse",0,"kr.",0,"kr.",null,"kr.",null,"kr.",null,"kr."]
[null,"Korrektion for  effektiviseringsgevinst der ikke er anvendt inden 4 år",0,"kr.",0,"kr.",null,"kr.",null,"kr.",{"$f":"IF(C39>SUM(C35:I37),C39-SUM(E35:I37),0)*-1","v":0},"kr."]
[null,"Resterende gevinst",{"$f":"C34-C35-C37","v":0},"kr.",{"$f":"C39+E34-E36-E35-E37","v":0},"kr.",{"$f":"E39+G34-G35-G37","v":0},"kr.",{"$f":"G39+I34-I35-I37","v":0},"kr.",{"$f":"K34-K35-K37+K38","v":0},"kr."]